Cogmind - Beta 11 @@@ ROGUE MODE // 2022.03.26 @ 12:47:07 Player: 3.14 Result: Self-destructed Performance ------------- Evolutions (5) 2500 Regions Visited (13) 2600 Robots Destroyed (126) 630 Value Destroyed (5802) 5802 Prototype IDs (10) 200 Alien Tech Used (0) 0 Bonus (2921) 2921 TOTAL SCORE: 14653 Bonus ------- High Alert Combat Kills 369 Follower Combat Kills 437 Entered Garrisons 800 Used RIF Installer 2000 Friendly Fire -685 Cogmind --------- Core Integrity 975/1000 Matter 191/300 Energy 310/310 System Corruption 0% Temperature Hot (207) Movement Treading (160) Location -5/Factory Parts ------- > --- POWER (1) -------- Fission Core > --- PROPULSION (5) --- Light Treads Heavy Treads Carbon-fiber Leg > --- UTILITY (9) ------ High-capacity Storage Unit Target Analyzer Core Analyzer Hardened Medium Armor Plating Relay Coupler [Swarmer] (38) Relay Coupler [Grunt] (22) Relay Coupler [Sentry] (21) Improved Corruption Screen > --- WEAPON (2) ------- Heavy Flak Cannon Mass Driver > --- INVENTORY (20) --- Light Angular Momentum Engine Carbon-fiber Leg Carbon-fiber Leg Matter Compressor (250) Hardened Medium Armor Plating EM Disruption Field Relay Coupler [NC] (31) Relay Coupler [Swarmer] (45) Relay Coupler [Cutter] (28) Relay Coupler [Sentry] (22) Relay Coupler [Behemoth] (10) System Restoration Module Autogun Gauss Rifle Gauss Rifle Gauss Rifle Precision Assault Rifle Remote Datajack Advanced Remote Datajack Axe Peak State ------------ > --- POWER ------------ Fission Core > --- PROPULSION ------- Light Treads Heavy Treads Carbon-fiber Leg > --- UTILITY ---------- High-capacity Storage Unit Target Analyzer Core Analyzer Hardened Medium Armor Plating Focal Shield Relay Coupler [Swarmer] Relay Coupler [Grunt] Relay Coupler [Sentry] Improved Corruption Screen > --- WEAPON ----------- Heavy Flak Cannon Mass Driver > --- INVENTORY -------- Light Angular Momentum Engine Carbon-fiber Leg Carbon-fiber Leg Matter Compressor Hardened Medium Armor Plating EM Disruption Field Relay Coupler [NC] Relay Coupler [Swarmer] Relay Coupler [Cutter] Relay Coupler [Sentry] Relay Coupler [Behemoth] System Restoration Module Autogun Gauss Rifle Gauss Rifle Gauss Rifle Precision Assault Rifle Remote Datajack Advanced Remote Datajack Axe [Rating: 71] Favorites ----------- Power Light Nuclear Core Engine Improved Deuterium Engine Power Core Light Nuclear Core Propulsion Light Treads Treads Light Treads Leg Carbon-fiber Leg Utility High-capacity Storage Unit Device Improved Heat Sink Storage High-capacity Storage Unit Processor Target Analyzer Hackware Relay Coupler [NC] Protection Hardened Medium Armor Plating Weapon Gauss Rifle Energy Gun EM Shotgun Energy Cannon Heavy Ion Cannon Ballistic Gun Gauss Rifle Ballistic Cannon Light Cannon Special Weapon Remote Datajack Special Melee Weapon Improved Datajack Build | -11 -10 -9 -8 -8 -7 -7 -7 -7 -6 -6 -6 -6 -5 ------- Run | Scr Mat Mat Mat Gar Fac Gar Fac Gar Fac Was Fac Gar Fac Slots Evolved 10 | . . 2 2 . 2 . . . 2 . . . 2 Power . | . . . . . . . . . . . . . . Propulsion 3 | . . 1 1 . . . . . . . . . 1 Utility 7 | . . 1 1 . 2 . . . 2 . . . 1 Weapon . | . . . . . . . . . . . . . . Parts Attached 148 | 7 2 16 6 17 27 4 8 15 9 10 13 11 3 Power 13 | 1 . 3 . 3 2 . 1 1 . . 1 1 . Engine 6 | 1 . 2 . 1 . . . 1 . . 1 . . Core 7 | . . 1 . 2 2 . 1 . . . . 1 . Reactor . | . . . . . . . . . . . . . . Propulsion 36 | 2 1 5 1 5 8 . . 6 1 3 2 2 . Treads 34 | 2 1 4 1 5 8 . . 6 1 3 2 1 . Leg 2 | . . 1 . . . . . . . . . 1 . Wheel . | . . . . . . . . . . . . . . Hover . | . . . . . . . . . . . . . . Flight . | . . . . . . . . . . . . . . Utility 49 | 1 1 4 2 3 8 3 4 3 3 5 6 5 1 Device 14 | . . 1 1 1 3 1 1 1 . . 5 . . Storage 3 | 1 1 1 . . . . . . . . . . . Processor 6 | . . 1 . . 2 . . . 1 . 1 . 1 Hackware 6 | . . . . . . . 1 . 1 1 . 3 . Protection 20 | . . 1 1 2 3 2 2 2 1 4 . 2 . Artifact . | . . . . . . . . . . . . . . Weapon 50 | 3 . 4 3 6 9 1 3 5 5 2 4 3 2 Energy Gun 5 | . . 2 1 1 1 . . . . . . . . Energy Cannon 2 | . . . . . 2 . . . . . . . . Ballistic Gun 35 | 3 . 2 2 4 6 1 2 5 3 2 3 2 . Ballistic Cannon 3 | . . . . 1 . . . . . . . . 2 Launcher . | . . . . . . . . . . . . . . Special Weapon 3 | . . . . . . . . . 1 . 1 1 . Impact Weapon . | . . . . . . . . . . . . . . Slashing Weapon . | . . . . . . . . . . . . . . Piercing Weapon . | . . . . . . . . . . . . . . Special Melee Weapon 2 | . . . . . . . 1 . 1 . . . . Unidentified Prototypes 3 | . . 2 . . . . . . . . 1 . . Corrupted Parts 1 | . . . . 1 . . . . . . . . . System Corruption 3 | . . . . 3 . . . . . . . . . Parts Lost 22 | . . . 1 8 2 . . 4 . . 1 5 1 Power 4 | . . . . 2 . . . . . . 1 1 . Propulsion 10 | . . . . 5 1 . . 2 . . . 2 . Utility 8 | . . . 1 1 1 . . 2 . . . 2 1 Weapon . | . . . . . . . . . . . . . . Highest Loss Streak 5 | . . . 1 5 1 . . 3 . . 1 3 1 To Critical Strikes . | . . . . . . . . . . . . . . Average Slot Usage (%) 92 | . 86 90 95 99 88 94 100 94 91 92 87 91 85 Engine 3 | . 14 4 9 2 . . . . 6 6 6 . . Core 4 | . . 6 . 5 7 7 7 6 . . . 5 5 Treads 26 | . 26 30 36 35 29 30 30 29 26 20 14 14 11 Device 4 | . . 3 2 9 6 5 7 5 . . 2 6 4 Storage 7 | . 17 11 9 9 7 7 7 7 6 6 6 6 5 Processor 11 | . . 4 9 9 8 15 15 15 19 13 13 13 15 Hackware 2 | . . . . . . . . . 5 6 6 8 17 Protection 13 | . . 6 11 9 11 11 14 11 12 23 23 16 5 Ballistic Gun 14 | . 28 20 17 16 13 15 14 15 11 11 12 12 . Naked Turns . | . . . . . . . . . . . . . . Heaviest Build 98 | 12 22 57 77 76 98 89 81 81 76 90 90 83 76 Greatest Support 140 | 40 40 63 86 86 112 112 112 112 88 140 140 110 90 Greatest Overweight (x) 1 | . . . . 1 1 . . 1 . 1 . . . Average Overweight (x) . | . . . . . . . . . . . . . . Largest Inventory Capacity 20 | 8 10 20 20 20 20 20 20 20 20 20 20 20 20 Average Capacity 18 | 6 9 13 20 20 20 20 20 20 20 20 20 20 20 Most Carried 20 | 4 10 20 20 20 20 20 20 20 20 20 20 20 20 Average Carried 17 | 2 7 12 18 16 19 19 19 19 19 19 19 19 20 Final Capacity 20 | 8 10 20 20 20 20 20 20 20 20 20 20 20 20 Final Carried 20 | 4 10 20 18 20 20 20 20 20 20 20 20 20 20 Class Distribution -------------------- 53% | Bothacker-Mutant 25% | Scavenger-Mutant 19% | Mutant Dominant Class ---------------- Mutant | -10/Materials Mutant | -9/Materials Mutant | -8/Materials Scavenger-Mutant | -8/Garrison Scavenger-Mutant | -7/Factory Bothacker-Mutant | -7/Garrison Bothacker-Mutant | -7/Factory Bothacker-Mutant | -7/Garrison Bothacker-Mutant | -6/Factory Bothacker-Mutant | -6/Waste Bothacker-Mutant | -6/Factory Bothacker-Mutant | -6/Garrison Botlord-Mutant | -5/Factory Resources | -11 -10 -9 -8 -8 -7 -7 -7 -7 -6 -6 -6 -6 -5 ----------- Run | Scr Mat Mat Mat Gar Fac Gar Fac Gar Fac Was Fac Gar Fac Matter Collected 4552 | 256 34 446 205 490 559 249 298 557 196 263 556 443 . Remotely 239 | . . . . . . . 239 . . . . . . Salvage Created 5778 | 89 34 729 371 627 1162 249 405 698 187 131 507 569 20 Parts 301 | 2 3 40 20 37 65 14 13 32 6 6 30 33 . Haulers Intercepted 7 | . . 5 . . 2 . . . . . . . . Recyclers Shooed 6 | . . 1 1 . 2 . . . . . 2 . . Parts Field Recycled . | . . . . . . . . . . . . . . Retrieved Matter . | . . . . . . . . . . . . . . Parts Self-Destructed . | . . . . . . . . . . . . . . Prevented . | . . . . . . . . . . . . . . Kills | -11 -10 -9 -8 -8 -7 -7 -7 -7 -6 -6 -6 -6 -5 ------- Run | Scr Mat Mat Mat Gar Fac Gar Fac Gar Fac Was Fac Gar Fac Combat Hostiles Destroyed 107 | . 1 11 7 19 15 4 7 17 3 . 9 13 1 Guns 99 | . 1 8 7 16 14 4 7 17 3 . 9 13 . Cannons 5 | . . . . 3 1 . . . . . . . 1 AOE 3 | . . 3 . . . . . . . . . . . Classes Destroyed 16 | 1 1 5 1 1 3 . 1 1 . 1 . 1 . Worker 3 | . . 1 . . . . . . . . 2 . . Builder 1 | . . . . . 1 . . . . . . . . Hauler 7 | . . 5 . . 2 . . . . . . . . Recycler 4 | 1 . . . . 3 . . . . . . . . Operator 1 | . . . . . 1 . . . . . . . . Watcher 1 | . . . . . . . 1 . . . . . . Swarmer 14 | . . 1 . 8 . . . . . . . 5 . Cutter 3 | . . . . . . . . 3 . . . . . Grunt 57 | . 1 8 4 8 9 2 6 7 3 . 3 6 . Brawler 3 | . . 1 . . . . 1 . . . 1 . . Duelist 1 | . . . . . . . . . . . . 1 . Sentry 13 | . . 1 2 1 . 2 . 6 . . . . 1 Demolisher 1 | . . . . . . . . . . . . 1 . Specialist 1 | . . . . 1 . . . . . . . . . Hunter 10 | . . . 1 1 5 . . . . . 3 . . Programmer 4 | . . . . . 1 . . 1 . . 2 . . Martyr 2 | . . . . . . . . . . 2 . . . Best Kill Streak 7 | 1 1 3 4 4 4 2 7 6 3 . 6 4 1 Combat Bots Only 7 | . 1 3 4 4 3 2 7 6 3 . 5 4 1 Max Kills in Single Turn 3 | 1 1 3 1 1 1 1 1 2 1 1 1 2 1 Gunslinging 1 | . . . . . . . . 1 . . . 1 . Exploded 3 | . . 3 . . . . . . . . . . . Melee . | . . . . . . . . . . . . . . Uniques/NPCs Destroyed . | . . . . . . . . . . . . . . Combat | -11 -10 -9 -8 -8 -7 -7 -7 -7 -6 -6 -6 -6 -5 -------- Run | Scr Mat Mat Mat Gar Fac Gar Fac Gar Fac Was Fac Gar Fac Damage Taken 8238 | . 21 411 771 1678 1033 392 277 1364 288 . 523 1276 204 Core 661 | . . 52 41 209 66 13 17 91 . . 60 87 25 Absorbed by Shields 125 | . . . . 71 . . . 54 . . . . . Regen/Repaired (Parts) 397 | . 11 51 . . 98 . . . 237 . . . . Core Remaining (%) 82 | 100 100 87 . 54 . . . 73 . . . 82 . Volleys Fired 394 | 2 6 41 27 61 72 13 20 42 13 21 23 47 6 Largest 2 | 2 2 2 2 2 2 2 2 2 2 2 2 2 2 Hottest 130 | 40 40 90 68 68 130 56 56 56 56 56 56 56 110 Shots Fired 765 | 4 12 82 54 119 143 26 40 83 24 34 44 88 12 Gun 711 | 4 12 82 54 103 135 26 40 83 22 26 42 82 . Cannon 36 | . . . . 16 8 . . . . . . . 12 Launcher . | . . . . . . . . . . . . . . Special 18 | . . . . . . . . . 2 8 2 6 . Kinetic 717 | 4 12 76 50 114 128 26 40 83 22 26 42 82 12 Thermal 8 | . . . . . 8 . . . . . . . . Explosive . | . . . . . . . . . . . . . . Electromagnetic 22 | . . 6 4 5 7 . . . . . . . . Robot Hit Streak 33 | 1 3 13 18 21 33 11 5 13 8 5 16 20 6 Robot Miss Streak 8 | 2 1 2 2 2 5 1 6 8 2 3 1 4 4 Penetration Max 1 | . . . . . 1 1 1 . . 1 1 . . Secondary Targets 22 | . . 1 3 4 . . 2 4 . . 4 4 . Max Gunslinging Chain 1 | . . 1 1 1 . . 1 1 . . 1 1 . Shots Hit Robots 574 | 2 8 59 43 92 104 21 25 70 18 22 37 64 9 Core Hits 324 | 1 2 23 18 33 45 8 17 95 9 13 20 31 9 Critical Kills 2 | . . . . . . . 1 . . . 1 . . Critical Parts Destroyed 12 | . . . . . 1 2 2 . 2 1 1 3 . Critical Strikes 15 | . . . . 1 1 2 3 . 2 1 2 3 . Destroy 14 | . . . . . 1 2 3 . 2 1 2 3 . Blast 1 | . . . . 1 . . . . . . . . . Melee Attacks 4 | . . . . . . . 3 . 1 . . . . Impact . | . . . . . . . . . . . . . . Slashing . | . . . . . . . . . . . . . . Piercing . | . . . . . . . . . . . . . . Sneak Attacks 1 | . . . . . . . . . 1 . . . . Combat Hostiles . | . . . . . . . . . . . . . . Follow-up Attacks . | . . . . . . . . . . . . . . Damage Inflicted 10654 | 28 96 1034 625 1505 1756 482 535 1462 324 521 769 1273 244 Guns 9848 | 28 96 907 625 1278 1636 482 529 1462 324 521 687 1273 . Cannons 585 | . . . . 221 120 . . . . . . . 244 Explosions 86 | . . 86 . . . . . . . . . . . Melee . | . . . . . . . . . . . . . . Ramming 135 | . . 41 . 6 . . 6 . . . 82 . . Kinetic 10034 | 28 96 845 565 1401 1577 482 529 1462 324 521 687 1273 244 Thermal 206 | . . 86 . . 120 . . . . . . . . Explosive . | . . . . . . . . . . . . . . Electromagnetic 279 | . . 62 60 98 59 . . . . . . . . Impact . | . . . . . . . . . . . . . . Slashing . | . . . . . . . . . . . . . . Piercing . | . . . . . . . . . . . . . . Highest Corruption 3 | . . 2 . 3 2 2 2 3 . . . . . Average Corruption 2 | . . 1 . 3 1 2 2 2 . . . . . Corruption Purged . | . . . . . . . . . . . . . . Corruption Blocked . | . . . . . . . . . . . . . . Effects 51 | . . 9 . 13 6 3 6 14 . . . . . Message Errors 17 | . . 4 . 4 4 1 2 2 . . . . . Matter Fused 13 | . . 2 . 1 . 1 2 7 . . . . . Heat Flow Errors 5 | . . 1 . 3 1 . . . . . . . . Energy Discharges 6 | . . 1 . 3 1 . . 1 . . . . . Parts Rejected 1 | . . 1 . . . . . . . . . . . Data Loss (minor) 6 | . . . . 2 . 1 1 2 . . . . . Data Loss (major) 1 | . . . . . . . 1 . . . . . . Misfires 1 | . . . . . . . . 1 . . . . . Weapon Failures 1 | . . . . . . . . 1 . . . . . Overload Shots . | . . . . . . . . . . . . . . Overflow Damage 14 | . . . . 14 . . . . . . . . . Projectiles 14 | . . . . 14 . . . . . . . . . Explosions . | . . . . . . . . . . . . . . Melee . | . . . . . . . . . . . . . . Knockbacks 4 | . . . . 4 . . . . . . . . . Impact . | . . . . . . . . . . . . . . Kinetic 4 | . . . . 4 . . . . . . . . . Secondary . | . . . . . . . . . . . . . . Self-Inflicted Damage . | . . . . . . . . . . . . . . Shots . | . . . . . . . . . . . . . . Rammed 11 | . . 3 . 1 1 . . . . . 6 . . Targets Rammed 14 | . . 3 . 1 1 . 1 . . . 8 . . Kicked . | . . . . . . . . . . . . . . Crushed 3 | . . . . . . . 1 . . . 2 . . Highest Temperature 270 | . . 270 140 198 161 48 108 174 16 206 207 207 207 Average Temperature 65 | . . 88 38 88 46 20 46 60 7 91 65 89 112 Received Heat Transfer 3183 | . 12 183 450 702 378 156 189 429 135 . 126 378 45 Siege Activations . | . . . . . . . . . . . . . . Robots Corrupted . | . . . . . . . . . . . . . . Combat Hostiles . | . . . . . . . . . . . . . . Parts Fried 1 | . . 1 . . . . . . . . . . . Impact Corruptions . | . . . . . . . . . . . . . . Robots Melted . | . . . . . . . . . . . . . . Combat Hostiles . | . . . . . . . . . . . . . . Parts Melted . | . . . . . . . . . . . . . . Heat Transferred 298 | . . 150 . . 148 . . . . . . . . Parts Sabotaged . | . . . . . . . . . . . . . . Parts Stolen . | . . . . . . . . . . . . . . Parts Stripped . | . . . . . . . . . . . . . . Power Chain Reactions 1 | . . 1 . . . . . . . . . . . Missiles Intercepted . | . . . . . . . . . . . . . . Alert | -11 -10 -9 -8 -8 -7 -7 -7 -7 -6 -6 -6 -6 -5 ------- Run | Scr Mat Mat Mat Gar Fac Gar Fac Gar Fac Was Fac Gar Fac Peak Influence 822 | 5 66 217 262 822 658 444 389 457 326 44 149 255 206 Initial 431 | . 3 27 70 172 431 309 233 132 239 44 . . 133 Average 277 | . 48 123 147 590 488 372 278 275 233 37 73 163 136 Maximum Alert Level 3 | . . 1 1 3 2 2 1 2 1 . . 1 1 Low Security (%) 44 | 100 100 94 71 5 . . 3 24 23 100 100 59 97 Level 1 25 | . . 5 28 6 13 73 96 62 76 . . 40 2 Level 2 25 | . . . . 61 86 26 . 12 . . . . . Level 3 4 | . . . . 27 . . . . . . . . . Level 4 . | . . . . . . . . . . . . . . Level 5 . | . . . . . . . . . . . . . . High Security . | . . . . . . . . . . . . . . Max Security . | . . . . . . . . . . . . . . Squads Dispatched 15 | . . . 4 . 6 . 1 . 3 . 1 . . Investigation 3 | . . . . . 2 . . . 1 . . . . Extermination 3 | . . . . . 1 . . . 1 . 1 . . Reinforcement 6 | . . . 2 . 2 . 1 . 1 . . . . Assault . | . . . . . . . . . . . . . . Garrison 3 | . . . 2 . 1 . . . . . . . . Intercept . | . . . . . . . . . . . . . . Searches Triggered . | . . . . . . . . . . . . . . Construction Impeded . | . . . . . . . . . . . . . . Haulers Reinforced 1 | . . . . . . . 1 . . . . . . Active Scanning Responses . | . . . . . . . . . . . . . . Cargo Convoy Interrupts . | . . . . . . . . . . . . . . Stealth | -11 -10 -9 -8 -8 -7 -7 -7 -7 -6 -6 -6 -6 -5 --------- Run | Scr Mat Mat Mat Gar Fac Gar Fac Gar Fac Was Fac Gar Fac Distress Signals 3 | . . 2 1 . . . . . . . . . . Communications Jammed . | . . . . . . . . . . . . . . Distress Signals . | . . . . . . . . . . . . . . Times Spotted 170 | . 3 24 14 19 23 4 12 17 6 6 17 24 1 Peak Tracking Total 7 | . 3 5 7 6 4 2 4 5 3 4 5 6 1 Tactical Retreats 6 | . 1 . . 1 . . . 1 . . . 3 . Traps | -11 -10 -9 -8 -8 -7 -7 -7 -7 -6 -6 -6 -6 -5 ------- Run | Scr Mat Mat Mat Gar Fac Gar Fac Gar Fac Was Fac Gar Fac Traps Triggered 7 | . . 3 . 1 1 . . 1 1 . . . . Indirectly . | . . . . . . . . . . . . . . Trap Hack Attempts . | . . . . . . . . . . . . . . Triggered . | . . . . . . . . . . . . . . Disarmed . | . . . . . . . . . . . . . . Reprogrammed . | . . . . . . . . . . . . . . Reused . | . . . . . . . . . . . . . . Traps Extracted . | . . . . . . . . . . . . . . Installed . | . . . . . . . . . . . . . . Triggered . | . . . . . . . . . . . . . . Machines | -11 -10 -9 -8 -8 -7 -7 -7 -7 -6 -6 -6 -6 -5 ---------- Run | Scr Mat Mat Mat Gar Fac Gar Fac Gar Fac Was Fac Gar Fac Machines Disabled 7 | . . . . 2 . 1 1 1 . . . 1 1 Max in Single Turn 1 | . . . . 1 . 1 1 1 . . . 1 1 Garrison Access 1 | . . . . . 1 . . . . . . . . Garrison Relay 5 | . . . . 2 . 1 . 1 . . . 1 . Machines Sabotaged . | . . . . . . . . . . . . . . Garrisons Compromised . | . . . . . . . . . . . . . . Overloaded Fab Kills . | . . . . . . . . . . . . . . Hacking | -11 -10 -9 -8 -8 -7 -7 -7 -7 -6 -6 -6 -6 -5 --------- Run | Scr Mat Mat Mat Gar Fac Gar Fac Gar Fac Was Fac Gar Fac Machines Accessed 26 | . 3 5 2 . 6 . 5 . 2 . 3 . . Terminals 11 | . 2 4 . . 1 . 3 . . . 1 . . Fabricators 4 | . . . . . 2 . . . 1 . 1 . . Repair Stations 4 | . 1 1 . . 1 . . . 1 . . . . Recycling Units . | . . . . . . . . . . . . . . Scanalyzers 2 | . . . 1 . . . 1 . . . . . . Garrison Access 5 | . . . 1 . 2 . 1 . . . 1 . . Total Hacks 63 | . 10 20 3 . 13 . 7 . 7 . 3 . . Successful 41 | . 7 13 3 . 8 . 5 . 4 . 1 . . Failed 21 | . 3 6 . . 5 . 2 . 3 . 2 . . Catastrophic 1 | . . . . . . . . . . . 1 . . Database Lockouts 1 | . . 1 . . . . . . . . . . . Manual 21 | . 7 12 . . 2 . . . . . . . . Terminals 31 | . 8 16 . . 2 . 4 . . . 1 . . Fabricators 11 | . . . . . 6 . . . 4 . 1 . . Repair Stations 12 | . 2 4 . . 3 . . . 3 . . . . Recycling Units . | . . . . . . . . . . . . . . Scanalyzers 4 | . . . 2 . . . 2 . . . . . . Garrison Access 5 | . . . 1 . 2 . 1 . . . 1 . . Terminal Hacks 9 | . 1 6 . . . . 2 . . . . . . Record 2 | . . 2 . . . . . . . . . . . Part Schematic 2 | . . 2 . . . . . . . . . . . Robot Analysis 1 | . . 1 . . . . . . . . . . . Prototype ID Bank 2 | . 1 . . . . . 1 . . . . . . Open DSF 1 | . . . . . . . 1 . . . . . . Locate Traps 1 | . . 1 . . . . . . . . . . . Fabricator Hacks 5 | . . . . . 3 . . . 2 . . . . Load Schematic 3 | . . . . . 2 . . . 1 . . . . Build 2 | . . . . . 1 . . . 1 . . . . Repair Station Hacks 10 | . 2 4 . . 2 . . . 2 . . . . Scan Component 5 | . 1 2 . . 1 . . . 1 . . . . Repair 5 | . 1 2 . . 1 . . . 1 . . . . Recycling Unit Hacks . | . . . . . . . . . . . . . . Scanalyzer 4 | . . . 2 . . . 2 . . . . . . Insert Component 2 | . . . 1 . . . 1 . . . . . . Analyze 2 | . . . 1 . . . 1 . . . . . . Garrison Access Hacks 5 | . . . 1 . 2 . 1 . . . 1 . . Unlock Access 4 | . . . 1 . 1 . 1 . . . 1 . . Seal Access 1 | . . . . . 1 . . . . . . . . Unauthorized Hacks 8 | . 4 3 . . 1 . . . . . . . . Terminals 8 | . 4 3 . . 1 . . . . . . . . Track 2 | . 1 1 . . . . . . . . . . . Botnet 5 | . 2 2 . . 1 . . . . . . . . Operators 1 | . 1 . . . . . . . . . . . . Fabricators . | . . . . . . . . . . . . . . Repair Stations . | . . . . . . . . . . . . . . Recycling Units . | . . . . . . . . . . . . . . Scanalyzers . | . . . . . . . . . . . . . . Garrison Access . | . . . . . . . . . . . . . . Data Cores Recovered . | . . . . . . . . . . . . . . Used . | . . . . . . . . . . . . . . Hacking Detections 20 | . 2 5 1 . 5 . 3 . 2 . 2 . . Full Trace Events 3 | . . . . . 2 . . . 1 . . . . Feedback Events . | . . . . . . . . . . . . . . Feedback Blocked . | . . . . . . . . . . . . . . Robot Schematics Acquired . | . . . . . . . . . . . . . . Robots Built . | . . . . . . . . . . . . . . Authchips . | . . . . . . . . . . . . . . Time . | . . . . . . . . . . . . . . Total Robot Build Rating . | . . . . . . . . . . . . . . Part Schematics Acquired 4 | . . 2 1 . . . 1 . . . . . . Parts Built 4 | . . . . . 2 . . . 2 . . . . Authchips . | . . . . . . . . . . . . . . Time 104 | . . . . . 62 . . . 42 . . . . Total Part Build Rating 12 | . . . . . 4 . . . 8 . . . . Parts Repaired 5 | . 1 2 . . 1 . . . 1 . . . . Time 120 | . 26 62 . . 13 . . . 19 . . . . Parts Recycled . | . . . . . . . . . . . . . . Recycled Matter . | . . . . . . . . . . . . . . Retrieved Matter . | . . . . . . . . . . . . . . Retrieved Components . | . . . . . . . . . . . . . . Parts Scanalyzed 2 | . . . 1 . . . 1 . . . . . . Part Schematics Acquired 2 | . . . 1 . . . 1 . . . . . . Parts Damaged . | . . . . . . . . . . . . . . Bothacking | -11 -10 -9 -8 -8 -7 -7 -7 -7 -6 -6 -6 -6 -5 ------------ Run | Scr Mat Mat Mat Gar Fac Gar Fac Gar Fac Was Fac Gar Fac Used RIF Installer 4 | . . . . 1 . 1 . 1 . . . 1 . Threat Obfuscator 1 | . . . . . . 1 . . . . . . . Watcher Feeds 1 | . . . . . . . . 1 . . . . . Patrol Navigation 1 | . . . . . . . . . . . . 1 . Robots Hacked 12 | . . . . . . . 2 . 1 6 2 1 . Non-combat 3 | . . . . . . . . . 1 . 2 . . Combat 9 | . . . . . . . 2 . . 6 . 1 . Robot Hacks Applied 12 | . . . . . . . 2 . 1 6 2 1 . drop_inventory 1 | . . . . . . . . . . . 1 . . ignore_parts 1 | . . . . . . . . . . . 1 . . ignore_targets 6 | . . . . . . . . . . 6 . . . amplify_resonance 1 | . . . . . . . . . . . . 1 . formatsys_low 1 | . . . . . . . . . 1 . . . . formatsys_high 2 | . . . . . . . 2 . . . . . . Relay Couplers Released 19 | . . . . 7 . 3 . 4 . . . 5 . Machine Destruction 19 | . . . . 7 . 3 . 4 . . . 5 . Attached 6 | . . . . . . . 1 . 1 1 . 3 . Fabnet Peak Effective % . | . . . . . . . . . . . . . . Robots Rewired . | . . . . . . . . . . . . . . Allies Hacked . | . . . . . . . . . . . . . . Hacks Repelled . | . . . . . . . . . . . . . . Allies | -11 -10 -9 -8 -8 -7 -7 -7 -7 -6 -6 -6 -6 -5 -------- Run | Scr Mat Mat Mat Gar Fac Gar Fac Gar Fac Was Fac Gar Fac Total Allies 22 | . . . . . . . 2 . 1 19 . . . Largest Group 19 | . . . . . . . 2 . 1 19 10 . . Highest-Rated Group 702 | . . . . . . . 32 . 23 702 414 . . Highest-Rated Ally 50 | . . . . . . . 16 . 23 50 46 . . Total Orders 1 | . . . . . . . . . 1 . . . . AID 1 | . . . . . . . . . 1 . . . . Ally Attacks 190 | . . . . . . . 19 . . 122 49 . . Total Damage 7900 | . . . . . . . 190 . . 6618 1092 . . Kills 22 | . . . . . . . 2 . . 13 7 . . Allies Corrupted . | . . . . . . . . . . . . . . Allies Melted . | . . . . . . . . . . . . . . Intel | -11 -10 -9 -8 -8 -7 -7 -7 -7 -6 -6 -6 -6 -5 ------- Run | Scr Mat Mat Mat Gar Fac Gar Fac Gar Fac Was Fac Gar Fac Robot Analysis Total 1 | . . 1 . . . . . . . . . . . Derelict Logs Recovered . | . . . . . . . . . . . . . . Drone Launches . | . . . . . . . . . . . . . . Drone Recoveries . | . . . . . . . . . . . . . . Exploration | -11 -10 -9 -8 -8 -7 -7 -7 -7 -6 -6 -6 -6 -5 ------------- Run | Scr Mat Mat Mat Gar Fac Gar Fac Gar Fac Was Fac Gar Fac Turns Passed 8806 | 92 323 740 201 1323 1420 334 414 850 526 825 902 750 106 Spaces Moved 4190 | 47 164 332 65 673 557 177 202 427 214 430 483 368 51 Core 1 | 1 . . . . . . . . . . . . . Treads 4189 | 46 164 332 65 673 557 177 202 427 214 430 483 368 51 Legs . | . . . . . . . . . . . . . . Wheels . | . . . . . . . . . . . . . . Hover . | . . . . . . . . . . . . . . Flight . | . . . . . . . . . . . . . . Fastest Speed 50 | 50 160 160 160 160 160 160 160 160 160 160 160 160 160 Average Speed 166 | 157 160 160 160 161 197 160 160 162 160 172 160 160 160 Slowest Speed 240 | 160 160 160 160 240 240 160 160 240 160 240 160 160 160 Overloaded Moves . | . . . . . . . . . . . . . . Propulsion Burnouts . | . . . . . . . . . . . . . . Robots Hopped . | . . . . . . . . . . . . . . Cave-ins Triggered . | . . . . . . . . . . . . . . Exploration Rate (%) 32 | 5 25 34 9 76 21 32 5 57 7 90 25 69 3 Regions Visited 13 Branch Regions . Pre-discovered Areas . | . . . . . . . . . . . . . . Known Exits Taken 4 | . . . 1 . 1 . 1 . . . 1 . . Unknown Exits Taken 3 | 1 1 1 . . . . . . . . . . . Scrap Searched . | . . . . . . . . . . . . . . Spaces Dug . | . . . . . . . . . . . . . . Terrain Destroyed 44 | . . 1 . . 3 1 2 1 . 2 . . 34 Melee . | . . . . . . . . . . . . . . Projectile 11 | . . . . . 3 1 2 1 . 2 . . 2 AOE 33 | . . 1 . . . . . . . . . . 32 Terrain Rammed . | . . . . . . . . . . . . . . Walls Destroyed . | . . . . . . . . . . . . . . Machines Disabled . | . . . . . . . . . . . . . . Actions | -11 -10 -9 -8 -8 -7 -7 -7 -7 -6 -6 -6 -6 -5 --------- Run | Scr Mat Mat Mat Gar Fac Gar Fac Gar Fac Was Fac Gar Fac Total 5279 | 58 218 460 108 795 744 205 250 504 376 486 567 445 63 Wait 293 | . 26 34 2 12 41 1 9 7 131 7 17 6 . Move 4182 | 46 163 331 65 672 557 176 202 426 214 429 483 367 51 Hop . | . . . . . . . . . . . . . . Pick Up 119 | 3 13 19 4 20 18 5 2 6 3 7 9 9 1 Fast Attach 45 | 6 2 11 1 1 3 1 . 5 3 4 5 1 2 Attach 31 | . . . 2 10 3 1 1 4 1 1 1 7 . Detach . | . . . . . . . . . . . . . . Swap 73 | 1 . 5 3 6 21 2 7 6 5 5 8 3 1 Drop 121 | . 8 16 4 12 28 6 3 8 4 12 13 5 2 Fire 394 | 2 6 41 27 61 72 13 20 42 13 21 23 47 6 Melee 4 | . . . . . . . 3 . 1 . . . . Ram . | . . . . . . . . . . . . . . Kick . | . . . . . . . . . . . . . . Crush 14 | . . 3 . 1 1 . 1 . . . 8 . . Escape Stasis . | . . . . . . . . . . . . . . Rewire 3 | . . . . . . . 2 . 1 . . . . Trap . | . . . . . . . . . . . . . . Miscellaneous . | . . . . . . . . . . . . . . Route ------- -11/Scrapyard -10/Materials -9/Materials -8/Materials -8/Garrison (discovered 3 exits: *Fac x3) -7/Factory (discovered 2 exits: *Fac / Gar) -7/Garrison -7/Factory -7/Garrison (discovered 3 exits: *Fac x3) -6/Factory -6/Waste -6/Factory -6/Garrison (discovered 3 exits: [*Fac x3]) -5/Factory History --------- Turn | Location | Event 25 | -11/Scrapyard | Discovered new exit (range 15) 93 | -11/Scrapyard | Entered Materials 255 | -10/Materials | Repaired Lgt. Treads 266 | -10/Materials | Discovered new exit (range 3) 335 | -10/Materials | Build established: Mutant 416 | -10/Materials | Entered another Materials area 416 | -9/Materials | Evolved 2 slots: Propulsion x1, Utility x1 740 | -9/Materials | Repaired Lgt. Treads 777 | -9/Materials | Repaired Corrupted Lgt. Treads 1129 | -9/Materials | Central database locked down 1137 | -9/Materials | Discovered new exit (range 12) 1156 | -9/Materials | Entered another Materials area 1156 | -8/Materials | Evolved 2 slots: Propulsion x1, Utility x1 1231 | -8/Materials | Garrison activated, responded to threat 1357 | -8/Materials | Identified exit to Garrison 1357 | -8/Materials | Entered Garrison 1478 | -8/Garrison | Triggered checkpoint 1590 | -8/Garrison | Discovered new exit (range 10) 1716 | -8/Garrison | Triggered checkpoint 1728 | -8/Garrison | Triggered checkpoint 1794 | -8/Garrison | Lost 5 parts (4n1u) 1922 | -8/Garrison | Discovered new exit (range 10) 2045 | -8/Garrison | Build established: Scavenger-Mutant 2066 | -8/Garrison | Discovered new exit (range 10) 2091 | -8/Garrison | Installed Relay Interface Framework 2124 | -8/Garrison | Triggered checkpoint 2142 | -8/Garrison | Garrison Relay disabled 2317 | -8/Garrison | Triggered checkpoint 2406 | -8/Garrison | Garrison Relay disabled 2680 | -8/Garrison | Entered Factory 2680 | -7/Factory | Evolved 2 slots: Utility x2 2907 | -7/Factory | Garrison activated, responded to threat 3085 | -7/Factory | Fabricated Imp. Treads (x2) 3181 | -7/Factory | Repaired Lgt. Treads 3406 | -7/Factory | Discovered new exit (range 14) 4100 | -7/Factory | Identified exit to Garrison 4100 | -7/Factory | Entered Garrison 4162 | -7/Garrison | Triggered checkpoint 4240 | -7/Garrison | Discovered new exit (range 12) 4265 | -7/Garrison | Build established: Bothacker-Mutant 4267 | -7/Garrison | Expanded RIF knowledge: Threat Obfuscation 4306 | -7/Garrison | Triggered checkpoint 4372 | -7/Garrison | Garrison Relay disabled 4434 | -7/Garrison | Entered Factory 4758 | -7/Factory | Destroyed 7 combat bots 4848 | -7/Factory | Identified exit to Garrison 4848 | -7/Factory | Entered Garrison 4910 | -7/Garrison | Triggered checkpoint 4953 | -7/Garrison | Discovered new exit (range 10) 5014 | -7/Garrison | Triggered checkpoint 5197 | -7/Garrison | Discovered new exit (range 14) 5415 | -7/Garrison | Discovered new exit (range 14) 5420 | -7/Garrison | Triggered checkpoint 5461 | -7/Garrison | Lost 3 parts (2n1u) 5485 | -7/Garrison | Expanded RIF knowledge: Watcher Feeds 5580 | -7/Garrison | Triggered checkpoint 5623 | -7/Garrison | Garrison Relay disabled 5698 | -7/Garrison | Entered Factory 5698 | -6/Factory | Evolved 2 slots: Utility x2 5746 | -6/Factory | Repaired Hvy. Armor Plating 5901 | -6/Factory | Fabricated Gauss Rifle? 6224 | -6/Factory | Sucked down chute 6224 | -6/Factory | Entered Waste 6263 | -6/Waste | Spotted C-40 Crusher 6271 | -6/Waste | Spotted C-40 Crusher 6274 | -6/Waste | Spotted C-40 Crusher 6274 | -6/Waste | Spotted C-40 Crusher 6299 | -6/Waste | Spotted C-40 Crusher 6310 | -6/Waste | Spotted C-40 Crusher 6445 | -6/Waste | Warlord forces began an assault 6649 | -6/Waste | Allies destroyed C-40 Crusher 6650 | -6/Waste | Allies destroyed C-40 Crusher 6651 | -6/Waste | Allies destroyed C-40 Crusher 6662 | -6/Waste | Allies destroyed C-40 Crusher 6701 | -6/Waste | Allies destroyed C-40 Crusher 6833 | -6/Waste | Discovered new exit (range 12) 7049 | -6/Waste | Entered Factory 7049 | -6/Factory | Accompanied by 10 allies 7951 | -6/Factory | Identified exit to Garrison 7951 | -6/Factory | Entered Garrison 7998 | -6/Garrison | Triggered checkpoint 8092 | -6/Garrison | Lost 3 parts (1p1n1u) 8102 | -6/Garrison | Triggered checkpoint 8251 | -6/Garrison | Discovered new exit (range 14) 8300 | -6/Garrison | Triggered checkpoint 8431 | -6/Garrison | Discovered new exit (range 13) 8490 | -6/Garrison | Triggered checkpoint 8514 | -6/Garrison | Garrison Relay disabled 8610 | -6/Garrison | Triggered checkpoint 8672 | -6/Garrison | Discovered new exit (range 9) 8695 | -6/Garrison | Expanded RIF knowledge: Patrol Navigation 8701 | -6/Garrison | Entered Factory 8701 | -5/Factory | Evolved 2 slots: Propulsion x1, Utility x1 8807 | -5/Factory | Self-destructed Last Messages --------------- RIF authorized. PARAMETERS=PROPULSION+1,UTILITY+1 LOCATION=UNKNOWN GOAL=ESCAPE 08711_ Dropped Hvy. Flak Cannon. 08711_ Acquired Mass Driver. 08712_ Dropped Prc. Assault Rifle. 08714_ Acquired Hvy. Flak Cannon. 08735_ T-07 Excavator is excavating. 08739_ Acquired Imp. Corruption Screen. 08739_ T-07 Excavator is excavating. 08776_ K-01 Serf cleans the Fabricator. 08789_ Penetrated by Slug. 08792_ Focal Shield destroyed. 08794_ Slug penetrates Wall. 08797_ Penetrated by Slug. 08803_ Slug penetrates Wall. 08804_ Y-64 Sentinel destroyed. 08804_ Nuclear Reactor explodes. 08807_ The unstable cave ceiling collapses. Map ----- +----------------------------------------------------+ | ?????????????????????????????????????????????????? | | ?????????????????????????????????????????????????? | | ?????????????????????????????????????????????????? | | ?????????????????????????????????????????????????? | | ?????????????????????????????????????????????????? | | ?????????????????????????????????????????????????? | | ?????????????????????????????????????????????????? | | ?????????????????????????????????????????????????? | | ?????????????????????????????????????????????????? | | ?????????????????????????????????????????????????? | | ????????????????????????????????????????????????? | | ??????????????????????????????????????????????? | | #?????????????????????????????????????????????? | | #?????????????????????????????????????????????? | | #?????????????????????????????????????????????? | | #?????????????????????????########????????????? | | #????????????????????????? # ???????????? | | #????????????????????????# ???????????? | | #????????????????????#### #??????????? | | +????????????????????# ??????????? | | #????????????????????# # ??????????? | | #????????????????????# #??????????? | | #################+#### !! #??????????? | | ]] # !! #??????????? | | k # ! #??????????? | | """ /@ "" ????????????? | | ""F"" # [ """?????????????? | | "" "" # ! S" ????????????? | | ############ ## """ ????????????? | | #??????# ## """?????????????? | | #??????# ## ?????????????? | | #??????# """"""" ##############????????????? | | #??????# """"""" # #???????????????? | | ! #???#### """"""" # #???????????????? | | #???# """"""" # """" #???????????????? | | #???# + """" ! #???????????????? | | ##### = # """" #???????????????? | | + *# """" ??????????????????? | | ################# ###### ??????????????????? | | ??????????????? #???# ?????????????????? | | ?????????????? ##???##########????????????????? | | ?????????????#####???????????????????????????????? | | ?????????????????????????????????????????????????? | | ?????????????????????????????????????????????????? | | | | | | | | | | | | | +----------------------------------------------------+ Best States ------------- Heat Dissipation 53 Coolant Potential 50 Energy Generation 18 Energy Capacity 310 Matter Stores 300 Matter Capacity 300 Sight Range 22 Terrain Scan Density 10 Corruption Block 15 Armor Coverage 1050 Resistance: KI 30 Resistance: EM 25 Evasion (%) 40 Target Analysis 5 Core Analysis 6 Recoil Reduction 4 Kinecelleration 30 Relay Coupler Types 3 Relay Coupler Value 88 Item Schematics ----------------- Imp. Treads | -9/Materials | Hacked Hrd. Light Armor Plating | -9/Materials | Hacked Imp. Assault Rifle | -8/Materials | Scanalyzed Gauss Rifle | -7/Factory | Scanalyzed Robot Schematics ------------------ None Fabricated ------------ Imp. Treads | x2 | -7/Factory Gauss Rifle | x2 | -6/Factory Alien Tech Used ----------------- None Achievements -------------- None Challenges ------------ None Game ------ Seed DeliveryTransportCutter Manual? 0 Play Time 00:49:04 Cumulative 690.0 hours Start 2022.03.26 @ 11:58:36 End 2022.03.26 @ 12:47:07 Sessions 1 Manual Loads 0 Difficulty Rogue Special Mode None Game No. 1059 Rogue 1059 Adventurer 0 Explorer 0 Win Type - Total 65 Types 40/1/9/11/4/0/0/0/0 Lore% 88 Gallery% 87 Achievement% 83 Wizard Run 0 Options --------- ASCII 1 Keyboard 0 Movement Numpad Keybinds 0 Fullscreen 0 Font 14/SmallcapsGlow Map View 76x50 Tactical HUD 1 Map Filters NONE Filters NONE Steam 1 RUN: cb66eadd-e4d4-46a6-8183-22201c0e8ba7